[Event "9th Amsterdam Science Park B 2019"]
[Site "Amsterdam"]
[Date "2019.07.11"]
[Round "6.2"]
[White "Roemersma, Aad"]
[Black "Duson, Robin"]
[Result "0-1"]
[ECO "B40"]
[WhiteElo "2029"]
[BlackElo "1936"]
[Annotator "NA"]
[PlyCount "58"]
[EventDate "2019.07.06"]
[EventType "swiss"]
[EventCountry "NED"]
[SourceTitle "playchess.com"]
[Source "ChessBase"]
[SourceQuality "1"]
[TimeControl "40/5400+30:1800+30"]

1. e4 {[%emt 0:00:58]} c5 {[%emt 0:00:00]} 2. Nf3 {[%emt 0:00:05]} e6 {[%emt 0:00:00]} 3. c3 {[%emt 0:00:07]} d5 {[%emt 0:00:00]} 4. exd5 {[%emt 0:00:09]} Qxd5 {[%emt 0:00:08]} 5. d4 {[%emt 0:00:33]} Nf6 {[%emt 0:00:13]} 6. Be2 {[%emt 0:01:58]} Nc6 {[%emt 0:00:44]} 7. O-O {[%emt 0:02:46]} Be7 {[%emt 0:00:59]} 8. dxc5 {[%emt 0:02:40]} Bxc5 {[%emt 0:02:16]} 9. Qxd5 {[%emt 0:01:54]} Nxd5 {[%emt 0:01:38]} 10. b4 {[%emt 0:05:06]} Be7 {[%emt 0:05:24]} 11. Bg5 {[%emt 0:03:01]} O-O {[%emt 0:10:18]} 12. Bxe7 {[%emt 0:01:29]} Ncxe7 {[%emt 0:00:11]} 13. Rc1 {[%emt 0:05:14]} b6 {[%emt 0:03:46]} 14. a3 {[%emt 0:04:07]} Bb7 {[%emt 0:02:27]} 15. Nbd2 {[%emt 0:01:22]} Rac8 {[%emt 0:02:13]} 16. c4 {[%emt 0:01:17]} Nf4 {[%emt 0:00:25]} 17. Bf1 {[%emt 0:00:17]} Rfd8 {[%emt 0:01:56]} 18. g3 {[%emt 0:02:08]} Nfg6 {[%emt 0:02:27]} 19. Be2 {[%emt 0:03:35]} e5 {[%emt 0:02:57]} 20. Nb3 {[%emt 0:02:37]} Nf5 {[%emt 0:04:48]} 21. c5 {[%emt 0:04:24]} e4 {[%emt 0:02:20]} 22. Ne1 {[%emt 0:01:52]} Ne5 {[%emt 0:02:35]} 23. Rd1 {[%emt 0:02:25]} Bd5 {[%emt 0:04:59]} 24. Rab1 {[%emt 0:10:11]} Bxb3 {[%emt 0:01:50]} 25. Rxb3 {[%emt 0:01:54]} Nd4 {[%emt 0:01:02]} 26. Rxd4 {[%emt 0:04:38]} Rxd4 {[%emt 0:00:09]} 27. Rc3 {[%emt 0:00:18]} bxc5 {[%emt 0:02:26]} 28. Nc2 {[%emt 0:02:18]} Rd2 {[%emt 0:00:18]} 29. Kf1 {[%emt 0:02:28]} c4 {[%emt 0:03:36]} 0-1

[Event "9th Amsterdam Science Park B 2019"]
[Site "Amsterdam"]
[Date "2019.07.11"]
[Round "6.3"]
[White "Emans, Job"]
[Black "De Ruiter, Tom"]
[Result "1-0"]
[ECO "A41"]
[WhiteElo "1989"]
[BlackElo "2010"]
[Annotator "NA"]
[PlyCount "111"]
[EventDate "2019.07.06"]
[EventType "swiss"]
[EventCountry "NED"]
[SourceTitle "playchess.com"]
[Source "ChessBase"]
[SourceQuality "1"]
[TimeControl "40/5400+30:1800+30"]

1. d4 {[%emt 0:00:00]} d6 {[%emt 0:00:44]} 2. Nf3 {[%emt 0:00:03]} Bg4 {[%emt 0:00:33]} 3. c4 {[%emt 0:03:09]} Nd7 {[%emt 0:00:42]} 4. e4 {[%emt 0:04:15]} e5 {[%emt 0:00:29]} 5. d5 {[%emt 0:00:45]} Ngf6 {[%emt 0:00:59]} 6. Nc3 {[%emt 0:00:49]} a5 {[%emt 0:00:44]} 7. Be2 {[%emt 0:00:56]} Nc5 {[%emt 0:01:49]} 8. Qc2 {[%emt 0:00:41]} Be7 {[%emt 0:00:32]} 9. O-O {[%emt 0:02:13]} O-O {[%emt 0:00:39]} 10. Ne1 {[%emt 0:02:45]} Bh5 {[%emt 0:07:21]} 11. b3 {[%emt 0:10:35]} Bg6 {[%emt 0:01:50]} 12. f3 {[%emt 0:00:31]} Nfd7 {[%emt 0:06:00]} 13. Nd3 {[%emt 0:02:44]} f5 {[%emt 0:04:24]} 14. Nf2 {[%emt 0:02:27]} fxe4 {[%emt 0:05:53]} 15. fxe4 {[%emt 0:00:25]} Bg5 {[%emt 0:03:24]} 16. Bf3 {[%emt 0:14:41]} Qe7 {[%emt 0:11:21]} 17. Nb5 {[%emt 0:08:07]} Na6 {[%emt 0:09:36]} 18. a3 {[%emt 0:05:48]} Bf4 {[%emt 0:08:41]} 19. Bxf4 {[%emt 0:02:46]} Rxf4 {[%emt 0:00:27]} 20. Qe2 {[%emt 0:02:18]} Raf8 {[%emt 0:02:57]} 21. Nd3 {[%emt 0:02:41]} R4f6 {[%emt 0:03:49]} 22. b4 {[%emt 0:01:28]} Qd8 {[%emt 0:02:44]} 23. Kh1 {[%emt 0:03:17]} c6 {[%emt 0:01:20]} 24. Nc3 {[%emt 0:01:35]} axb4 {[%emt 0:01:22]} 25. axb4 {[%emt 0:00:22]} c5 {[%emt 0:00:31]} 26. b5 {[%emt 0:05:34]} Nb4 {[%emt 0:00:46]} 27. Rfb1 {[%emt 0:00:40]} Nxd3 {[%emt 0:06:11]} 28. Qxd3 {[%emt 0:04:45]} Nb6 {[%emt 0:02:17]} 29. Rf1 {[%emt 0:02:15]} Kh8 {[%emt 0:02:29]} 30. Kg1 {[%emt 0:01:27]} h6 {[%emt 0:00:36]} 31. Ne2 {[%emt 0:06:02]} R6f7 {[%emt 0:01:31]} 32. Ng3 {[%emt 0:00:54]} Qg5 {[%emt 0:00:19]} 33. Qe2 {[%emt 0:01:15]} Ra8 {[%emt 0:03:15]} 34. Rxa8+ {[%emt 0:01:22]} Nxa8 {[%emt 0:00:02]} 35. Ra1 {[%emt 0:00:09]} Nb6 {[%emt 0:00:29]} 36. Qd3 {[%emt 0:02:10]} h5 {[%emt 0:01:38]} 37. Ne2 {[%emt 0:01:06]} Nxc4 {[%emt 0:02:19]} 38. h4 {[%emt 0:05:19]} Qe3+ {[%emt 0:01:33]} 39. Qxe3 {[%emt 0:00:02]} Nxe3 {[%emt 0:00:02]} 40. Ng3 {[%emt 0:00:49]} Rc7 {[%emt 0:07:00]} 41. Nxh5 {[%emt 0:10:03]} c4 {[%emt 0:03:40]} 42. Rc1 {[%emt 0:00:12]} Rf7 {[%emt 0:04:46]} 43. Ng3 {[%emt 0:03:01]} Rf4 {[%emt 0:00:33]} 44. Rc3 {[%emt 0:01:34]} Ng4 {[%emt 0:01:48]} 45. Ne2 {[%emt 0:00:41]} Rxe4 {[%emt 0:00:28]} 46. Bxe4 {[%emt 0:00:15]} Bxe4 {[%emt 0:00:02]} 47. Rxc4 {[%emt 0:00:43]} Nf6 {[%emt 0:01:51]} 48. Nc3 {[%emt 0:01:50]} Bd3 {[%emt 0:01:00]} 49. Rc7 {[%emt 0:02:05]} e4 {[%emt 0:00:20]} 50. Kf2 {[%emt 0:00:51]} Ng4+ {[%emt 0:00:27]} 51. Ke1 {[%emt 0:00:16]} Ne3 {[%emt 0:00:07]} 52. Rxb7 {[%emt 0:03:06]} Nxg2+ {[%emt 0:01:35]} 53. Kd2 {[%emt 0:00:08]} Nxh4 {[%emt 0:00:05]} 54. Re7 {[%emt 0:00:28]} Nf5 {[%emt 0:01:28]} 55. Re8+ {[%emt 0:00:27]} Kh7 {[%emt 0:00:03]} 56. b6 {[%emt 0:00:13]} 1-0

[Event "9th Amsterdam Science Park B 2019"]
[Site "Amsterdam"]
[Date "2019.07.11"]
[Round "6.4"]
[White "Klaren, Duncan"]
[Black "Aalten, Evert"]
[Result "1/2-1/2"]
[ECO "B70"]
[WhiteElo "1896"]
[BlackElo "1931"]
[Annotator "NA"]
[PlyCount "77"]
[EventDate "2019.07.06"]
[EventType "swiss"]
[EventCountry "NED"]
[SourceTitle "playchess.com"]
[Source "ChessBase"]
[SourceQuality "1"]
[TimeControl "40/5400+30:1800+30"]

1. e4 {[%emt 0:00:00]} c5 {[%emt 0:00:00]} 2. Nf3 {[%emt 0:00:00]} d6 {[%emt 0:00:00]} 3. d4 {[%emt 0:00:00]} cxd4 {[%emt 0:00:08]} 4. Nxd4 {[%emt 0:00:00]} Nf6 {[%emt 0:00:16]} 5. Nc3 {[%emt 0:00:00]} g6 {[%emt 0:00:34]} 6. Be2 {[%emt 0:00:03]} Bg7 {[%emt 0:00:11]} 7. O-O {[%emt 0:00:10]} O-O {[%emt 0:00:57]} 8. Re1 {[%emt 0:00:15]} Nc6 {[%emt 0:00:15]} 9. Nb3 {[%emt 0:00:03]} Be6 {[%emt 0:01:18]} 10. Bf1 {[%emt 0:00:21]} d5 {[%emt 0:00:34]} 11. Nc5 {[%emt 0:05:00]} dxe4 {[%emt 0:02:25]} 12. Qxd8 {[%emt 0:02:33]} Raxd8 {[%emt 0:00:44]} 13. Nxe6 {[%emt 0:00:06]} fxe6 {[%emt 0:00:19]} 14. Be3 {[%emt 0:03:51]} Nd4 {[%emt 0:15:49]} 15. Bxd4 {[%emt 0:08:44]} Rxd4 {[%emt 0:00:11]} 16. Rad1 {[%emt 0:00:53]} Rfd8 {[%emt 0:04:26]} 17. Bc4 {[%emt 0:03:10]} Kf7 {[%emt 0:02:52]} 18. Rxd4 {[%emt 0:08:55]} Rxd4 {[%emt 0:00:11]} 19. b3 {[%emt 0:00:03]} Rd2 {[%emt 0:14:31]} 20. Nxe4 {[%emt 0:01:40]} Nxe4 {[%emt 0:00:08]} 21. Rxe4 {[%emt 0:00:06]} Rxc2 {[%emt 0:03:12]} 22. a4 {[%emt 0:06:31]} Rc1+ {[%emt 0:02:52]} 23. Bf1 {[%emt 0:00:18]} Bc3 {[%emt 0:02:27]} 24. Rc4 {[%emt 0:02:09]} Bd2 {[%emt 0:00:16]} 25. Rd4 {[%emt 0:00:18]} Ba5 {[%emt 0:01:28]} 26. g3 {[%emt 0:02:32]} Bb6 {[%emt 0:01:27]} 27. Rd3 {[%emt 0:03:27]} e5 {[%emt 0:00:42]} 28. Rf3+ {[%emt 0:01:06]} Kg7 {[%emt 0:02:42]} 29. Kg2 {[%emt 0:00:33]} e4 {[%emt 0:01:50]} 30. Rf4 {[%emt 0:00:07]} e3 {[%emt 0:01:26]} 31. fxe3 {[%emt 0:17:56]} Bxe3 {[%emt 0:01:50]} 32. Re4 {[%emt 0:00:17]} Bc5 {[%emt 0:00:58]} 33. Rc4 {[%emt 0:03:13]} Rxc4 {[%emt 0:00:57]} 34. Bxc4 {[%emt 0:00:04]} Kf6 {[%emt 0:00:35]} 35. Kf3 {[%emt 0:00:07]} Ke5 {[%emt 0:02:07]} 36. h3 {[%emt 0:00:31]} e6 {[%emt 0:00:59]} 37. g4 {[%emt 0:01:35]} g5 {[%emt 0:01:13]} 38. Kg3 {[%emt 0:01:13]} h6 {[%emt 0:00:27]} 39. Kf3 {[%emt 0:00:12]} 1/2-1/2

[Event "9th Amsterdam Science Park B 2019"]
[Site "Amsterdam"]
[Date "2019.07.11"]
[Round "6.5"]
[White "Gutmann, Alois"]
[Black "Bollaart, Jeroen"]
[Result "0-1"]
[ECO "A00"]
[WhiteElo "2036"]
[BlackElo "1950"]
[Annotator "NA"]
[PlyCount "143"]
[EventDate "2019.07.06"]
[EventType "swiss"]
[EventCountry "NED"]
[SourceTitle "playchess.com"]
[Source "ChessBase"]
[SourceQuality "1"]
[TimeControl "40/5400+30:1800+30"]

1. Nc3 {[%emt 0:05:36]} g6 {[%emt 0:00:00]} 2. Nf3 {[%emt 0:00:31]} Bg7 {[%emt 0:00:14]} 3. e4 {[%emt 0:01:27]} d6 {[%emt 0:00:16]} 4. Bc4 {[%emt 0:01:14]} Nf6 {[%emt 0:03:42]} 5. d3 {[%emt 0:02:20]} O-O {[%emt 0:03:34]} 6. O-O {[%emt 0:00:03]} Nc6 {[%emt 0:05:52]} 7. a4 {[%emt 0:01:10]} Bg4 {[%emt 0:03:17]} 8. h3 {[%emt 0:00:10]} Bxf3 {[%emt 0:03:55]} 9. Qxf3 {[%emt 0:00:22]} Ne5 {[%emt 0:00:28]} 10. Qe2 {[%emt 0:00:23]} Nxc4 {[%emt 0:00:15]} 11. dxc4 {[%emt 0:00:01]} Nd7 {[%emt 0:05:06]} 12. Ra3 {[%emt 0:01:52]} Nc5 {[%emt 0:06:48]} 13. b4 {[%emt 0:10:20]} Ne6 {[%emt 0:05:29]} 14. a5 {[%emt 0:08:30]} c5 {[%emt 0:05:00]} 15. b5 {[%emt 0:01:37]} Bxc3 {[%emt 0:03:14]} 16. Rxc3 {[%emt 0:00:23]} Qxa5 {[%emt 0:00:34]} 17. Ra3 {[%emt 0:01:43]} Qc7 {[%emt 0:03:26]} 18. Bh6 {[%emt 0:01:41]} Rfe8 {[%emt 0:02:29]} 19. Rfa1 {[%emt 0:00:21]} a5 {[%emt 0:04:38]} 20. h4 {[%emt 0:09:35]} b6 {[%emt 0:04:41]} 21. Rg3 {[%emt 0:07:51]} Nd4 {[%emt 0:02:16]} 22. Qd3 {[%emt 0:01:09]} e5 {[%emt 0:02:54]} 23. h5 {[%emt 0:04:13]} Ra7 {[%emt 0:06:53]} 24. Rd1 {[%emt 0:11:36]} Ne6 {[%emt 0:10:21]} 25. Kf1 {[%emt 0:09:01]} Qe7 {[%emt 0:03:36]} 26. Qxd6 {[%emt 0:01:34]} Rd8 {[%emt 0:00:57]} 27. Qxe7 {[%emt 0:00:23]} Rxd1+ {[%emt 0:00:09]} 28. Ke2 {[%emt 0:00:01]} Rxe7 {[%emt 0:00:20]} 29. Kxd1 {[%emt 0:00:07]} Rd7+ {[%emt 0:00:57]} 30. Kc1 {[%emt 0:09:57]} Rd4 {[%emt 0:00:38]} 31. hxg6 {[%emt 0:00:08]} hxg6 {[%emt 0:01:01]} 32. Bd2 {[%emt 0:04:19]} Rxc4 {[%emt 0:03:55]} 33. Rd3 {[%emt 0:00:58]} Rd4 {[%emt 0:00:58]} 34. Re3 {[%emt 0:03:31]} f6 {[%emt 0:01:09]} 35. Bc3 {[%emt 0:01:20]} Rd8 {[%emt 0:00:44]} 36. Bb2 {[%emt 0:00:27]} Nd4 {[%emt 0:00:36]} 37. c4 {[%emt 0:00:48]} Ne6 {[%emt 0:00:43]} 38. Kc2 {[%emt 0:01:32]} Kg7 {[%emt 0:01:03]} 39. g3 {[%emt 0:00:36]} g5 {[%emt 0:00:34]} 40. g4 {[%emt 0:00:34]} Rh8 {[%emt 0:01:10]} 41. Bc3 {[%emt 0:07:00]} Rh2 {[%emt 0:03:06]} 42. Be1 {[%emt 0:07:04]} Kf7 {[%emt 0:01:11]} 43. Kb3 {[%emt 0:02:05]} Nd4+ {[%emt 0:00:48]} 44. Kb2 {[%emt 0:01:06]} Ke7 {[%emt 0:01:36]} 45. Kb1 {[%emt 0:02:42]} Rh1 {[%emt 0:05:26]} 46. Kb2 {[%emt 0:01:22]} Rh4 {[%emt 0:04:37]} 47. Rg3 {[%emt 0:01:50]} Kd6 {[%emt 0:00:41]} 48. Bd2 {[%emt 0:03:08]} Rh2 {[%emt 0:01:29]} 49. Be1 {[%emt 0:00:46]} Kc7 {[%emt 0:01:33]} 50. Ka2 {[%emt 0:00:40]} Rh1 {[%emt 0:01:09]} 51. Bd2 {[%emt 0:00:44]} Rh4 {[%emt 0:02:33]} 52. Kb2 {[%emt 0:00:24]} Ne2 {[%emt 0:01:33]} 53. Re3 {[%emt 0:01:41]} Nf4 {[%emt 0:00:36]} 54. Rg3 {[%emt 0:00:01]} Rh2 {[%emt 0:01:30]} 55. Be1 {[%emt 0:00:58]} Rg2 {[%emt 0:03:04]} 56. Kc2 {[%emt 0:04:36]} Rxg3 {[%emt 0:01:54]} 57. fxg3 {[%emt 0:00:00]} Ne6 {[%emt 0:00:48]} 58. Kd3 {[%emt 0:00:21]} Nd4 {[%emt 0:00:27]} 59. Bd2 {[%emt 0:01:53]} Nf3 {[%emt 0:00:32]} 60. Bc1 {[%emt 0:00:58]} Nh2 {[%emt 0:00:09]} 61. Ke2 {[%emt 0:00:26]} Nxg4 {[%emt 0:00:10]} 62. Kf3 {[%emt 0:00:02]} Nh6 {[%emt 0:00:29]} 63. g4 {[%emt 0:00:16]} Nf7 {[%emt 0:00:56]} 64. Ke2 {[%emt 0:00:12]} Nd8 {[%emt 0:00:20]} 65. Ba3 {[%emt 0:01:11]} Ne6 {[%emt 0:00:10]} 66. Bc1 {[%emt 0:00:24]} Nd4+ {[%emt 0:00:09]} 67. Ke3 {[%emt 0:00:30]} a4 {[%emt 0:00:47]} 68. Kd3 {[%emt 0:00:43]} Nf3 {[%emt 0:00:39]} 69. Kc2 {[%emt 0:01:23]} Nh2 {[%emt 0:00:10]} 70. Kb2 {[%emt 0:00:06]} Nxg4 {[%emt 0:00:09]} 71. Ka3 {[%emt 0:00:07]} Nf2 {[%emt 0:00:11]} 72. Kxa4 {[%emt 0:00:04]} 0-1

[Event "9th Amsterdam Science Park B 2019"]
[Site "Amsterdam"]
[Date "2019.07.11"]
[Round "6.6"]
[White "Eveleens, Wim"]
[Black "Van der Eyk, Dick"]
[Result "1-0"]
[ECO "A02"]
[WhiteElo "2005"]
[BlackElo "1949"]
[Annotator "NA"]
[PlyCount "63"]
[EventDate "2019.07.06"]
[EventType "swiss"]
[EventCountry "NED"]
[SourceTitle "playchess.com"]
[Source "ChessBase"]
[SourceQuality "1"]
[TimeControl "40/5400+30:1800+30"]

1. f4 {[%emt 0:00:00]} c5 {[%emt 0:00:00]} 2. Nf3 {[%emt 0:00:00]} Nc6 {[%emt 0:00:14]} 3. e4 {[%emt 0:00:16]} g6 {[%emt 0:00:21]} 4. Be2 {[%emt 0:01:39]} Bg7 {[%emt 0:00:25]} 5. O-O {[%emt 0:02:50]} e6 {[%emt 0:01:16]} 6. c3 {[%emt 0:02:09]} Nge7 {[%emt 0:01:33]} 7. d4 {[%emt 0:07:18]} cxd4 {[%emt 0:00:41]} 8. cxd4 {[%emt 0:00:02]} d5 {[%emt 0:00:28]} 9. e5 {[%emt 0:00:04]} O-O {[%emt 0:00:14]} 10. Kh1 {[%emt 0:00:22]} Bd7 {[%emt 0:04:41]} 11. Nc3 {[%emt 0:00:36]} f5 {[%emt 0:01:43]} 12. b3 {[%emt 0:09:23]} a6 {[%emt 0:05:48]} 13. Ba3 {[%emt 0:07:55]} Re8 {[%emt 0:02:50]} 14. Na4 {[%emt 0:06:15]} b6 {[%emt 0:07:00]} 15. Rc1 {[%emt 0:02:37]} Na5 {[%emt 0:05:31]} 16. Nb2 {[%emt 0:03:39]} Bb5 {[%emt 0:05:38]} 17. Rc2 {[%emt 0:11:37]} Qd7 {[%emt 0:07:46]} 18. Qd2 {[%emt 0:01:11]} Rec8 {[%emt 0:08:17]} 19. Rfc1 {[%emt 0:00:16]} Bf8 {[%emt 0:06:23]} 20. h3 {[%emt 0:04:36]} Rxc2 {[%emt 0:05:44]} 21. Rxc2 {[%emt 0:00:06]} Bxe2 22. Qxe2 {[%emt 0:00:07]} Rc8 {[%emt 0:01:14]} 23. Na4 {[%emt 0:02:56]} Bh6 {[%emt 0:07:57]} 24. Bxe7 {[%emt 0:17:11]} Rxc2 {[%emt 0:01:45]} 25. Qxc2 {[%emt 0:00:02]} Qxe7 {[%emt 0:00:34]} 26. Qc8+ {[%emt 0:00:07]} Kf7 {[%emt 0:01:21]} 27. Nxb6 {[%emt 0:00:29]} Bxf4 {[%emt 0:03:31]} 28. Qh8 {[%emt 0:02:21]} g5 {[%emt 0:06:01]} 29. Qxh7+ {[%emt 0:01:27]} Ke8 {[%emt 0:00:06]} 30. Qg8+ {[%emt 0:00:30]} Qf8 {[%emt 0:00:14]} 31. Qxe6+ {[%emt 0:00:27]} Qe7 {[%emt 0:00:15]} 32. Qxe7+ 1-0

[Event "9th Amsterdam Science Park B 2019"]
[Site "Amsterdam"]
[Date "2019.07.11"]
[Round "6.7"]
[White "Cohn, Samuel"]
[Black "Zegstroo, Martin"]
[Result "1-0"]
[ECO "A57"]
[WhiteElo "1679"]
[BlackElo "1798"]
[Annotator "NA"]
[PlyCount "92"]
[EventDate "2019.07.06"]
[EventType "swiss"]
[EventCountry "NED"]
[SourceTitle "playchess.com"]
[Source "ChessBase"]
[SourceQuality "1"]
[TimeControl "40/5400+30:1800+30"]

1. d4 {[%emt 0:00:00]} Nf6 {[%emt 0:01:08]} 2. c4 {[%emt 0:00:00]} c5 {[%emt 0:00:06]} 3. d5 {[%emt 0:00:00]} b5 {[%emt 0:00:06]} 4. cxb5 {[%emt 0:00:00]} a6 {[%emt 0:00:08]} 5. e3 {[%emt 0:00:04]} d6 {[%emt 0:00:13]} 6. Nc3 {[%emt 0:00:24]} g6 {[%emt 0:00:06]} 7. Nf3 {[%emt 0:00:37]} Bg7 {[%emt 0:00:07]} 8. Qc2 {[%emt 0:01:36]} O-O {[%emt 0:00:55]} 9. Bd2 {[%emt 0:03:07]} Nbd7 {[%emt 0:01:19]} 10. e4 {[%emt 0:02:27]} Ng4 {[%emt 0:02:30]} 11. Be2 {[%emt 0:07:13]} axb5 {[%emt 0:00:40]} 12. Nxb5 {[%emt 0:00:37]} Ba6 {[%emt 0:00:24]} 13. O-O {[%emt 0:01:24]} Nge5 {[%emt 0:02:37]} 14. Nxe5 {[%emt 0:03:28]} Bxe5 {[%emt 0:01:01]} 15. f4 {[%emt 0:05:52]} Bxb5 {[%emt 0:00:37]} 16. Bxb5 {[%emt 0:00:10]} Bd4+ {[%emt 0:00:07]} 17. Kh1 {[%emt 0:00:07]} Nf6 {[%emt 0:03:38]} 18. h3 {[%emt 0:01:26]} Qb6 {[%emt 0:02:16]} 19. a4 {[%emt 0:02:04]} Rfc8 {[%emt 0:09:38]} 20. Rf3 {[%emt 0:08:05]} c4 {[%emt 0:03:15]} 21. Ra2 {[%emt 0:07:59]} Qc5 {[%emt 0:03:22]} 22. Bc3 {[%emt 0:09:15]} Rcb8 {[%emt 0:02:16]} 23. Bc6 {[%emt 0:01:47]} Ra7 {[%emt 0:00:37]} 24. f5 {[%emt 0:07:22]} Rb3 {[%emt 0:04:03]} 25. g4 {[%emt 0:06:02]} Bxc3 {[%emt 0:01:15]} 26. bxc3 {[%emt 0:00:52]} Nd7 {[%emt 0:04:12]} 27. Bxd7 {[%emt 0:04:24]} Rxd7 {[%emt 0:00:09]} 28. fxg6 {[%emt 0:00:05]} hxg6 {[%emt 0:00:23]} 29. Qf2 {[%emt 0:06:33]} Qxf2 {[%emt 0:02:27]} 30. Raxf2 {[%emt 0:01:49]} f6 {[%emt 0:00:10]} 31. g5 {[%emt 0:00:53]} Kg7 {[%emt 0:05:07]} 32. Kg2 {[%emt 0:05:51]} Rc7 {[%emt 0:05:18]} 33. gxf6+ {[%emt 0:00:33]} exf6 {[%emt 0:00:13]} 34. Rxf6 {[%emt 0:02:17]} Rxc3 {[%emt 0:00:09]} 35. Rxd6 {[%emt 0:00:28]} Rd3 {[%emt 0:00:39]} 36. Rff6 {[%emt 0:01:34]} c3 {[%emt 0:02:11]} 37. Rxg6+ {[%emt 0:00:12]} Kh7 {[%emt 0:00:35]} 38. Rc6 {[%emt 0:02:34]} Re7 {[%emt 0:01:52]} 39. Rg3 {[%emt 0:05:05]} Rxg3+ {[%emt 0:06:50]} 40. Kxg3 {[%emt 0:00:05]} Rxe4 {[%emt 0:00:05]} 41. a5 {[%emt 0:13:28]} Ra4 {[%emt 0:01:44]} 42. Rxc3 {[%emt 0:03:22]} Rxa5 {[%emt 0:00:09]} 43. Rd3 {[%emt 0:00:11]} Ra7 {[%emt 0:01:09]} 44. Kf4 {[%emt 0:01:08]} Kg6 {[%emt 0:00:32]} 45. d6 {[%emt 0:01:04]} Kf6 {[%emt 0:00:26]} 46. d7 {[%emt 0:00:19]} Kg7 1-0

[Event "9th Amsterdam Science Park B 2019"]
[Site "Amsterdam"]
[Date "2019.07.11"]
[Round "6.8"]
[White "Adavatkar, Rugved"]
[Black "Honkoop, Mark"]
[Result "0-1"]
[ECO "A06"]
[WhiteElo "1678"]
[BlackElo "1670"]
[Annotator "NA"]
[PlyCount "62"]
[EventDate "2019.07.06"]
[EventType "swiss"]
[EventCountry "NED"]
[SourceTitle "playchess.com"]
[Source "ChessBase"]
[SourceQuality "1"]
[TimeControl "40/5400+30:1800+30"]

1. Nf3 {[%emt 0:00:00]} d5 {[%emt 0:00:32]} 2. g3 {[%emt 0:00:00]} Nf6 {[%emt 0:02:38]} 3. Bg2 {[%emt 0:01:02]} g6 {[%emt 0:02:41]} 4. d4 {[%emt 0:02:47]} Bg7 {[%emt 0:01:13]} 5. O-O {[%emt 0:00:09]} O-O {[%emt 0:01:32]} 6. Bd2 {[%emt 0:03:29]} c6 {[%emt 0:10:08]} 7. Re1 {[%emt 0:01:23]} Nbd7 {[%emt 0:01:52]} 8. Qc1 {[%emt 0:00:56]} Re8 {[%emt 0:02:26]} 9. Ne5 {[%emt 0:03:56]} Qb6 {[%emt 0:06:30]} 10. c3 {[%emt 0:03:03]} Nxe5 {[%emt 0:03:22]} 11. dxe5 {[%emt 0:01:46]} Ng4 {[%emt 0:00:36]} 12. e3 {[%emt 0:00:08]} Nxe5 {[%emt 0:00:47]} 13. Qc2 {[%emt 0:01:10]} Bf5 {[%emt 0:07:06]} 14. e4 {[%emt 0:01:34]} Bxe4 {[%emt 0:00:52]} 15. Bxe4 {[%emt 0:01:04]} dxe4 {[%emt 0:00:08]} 16. Rxe4 {[%emt 0:04:43]} Nf3+ {[%emt 0:05:15]} 17. Kg2 {[%emt 0:00:29]} Nxd2 {[%emt 0:00:11]} 18. Nxd2 {[%emt 0:00:20]} Rad8 {[%emt 0:01:50]} 19. Rae1 {[%emt 0:04:50]} Qc5 {[%emt 0:06:47]} 20. Nb3 {[%emt 0:01:05]} Qd5 {[%emt 0:02:23]} 21. f3 {[%emt 0:03:24]} e5 {[%emt 0:04:38]} 22. c4 {[%emt 0:02:02]} Qd6 {[%emt 0:01:29]} 23. f4 {[%emt 0:00:27]} f5 {[%emt 0:03:02]} 24. fxe5 {[%emt 0:01:00]} Rxe5 {[%emt 0:00:35]} 25. R4e2 {[%emt 0:00:36]} c5 {[%emt 0:06:26]} 26. Qc1 {[%emt 0:02:19]} Rde8 {[%emt 0:01:43]} 27. Qc2 {[%emt 0:03:38]} b6 {[%emt 0:06:46]} 28. Nc1 {[%emt 0:01:00]} Qd4 {[%emt 0:03:42]} 29. b3 {[%emt 0:02:58]} Kf7 {[%emt 0:03:35]} 30. Kf3 {[%emt 0:01:31]} Bh6 {[%emt 0:02:31]} 31. Qd3 {[%emt 0:01:29]} Rxe2 {[%emt 0:01:59]} 0-1

[Event "9th Amsterdam Science Park B 2019"]
[Site "Amsterdam"]
[Date "2019.07.11"]
[Round "6.9"]
[White "Hospes, Peter"]
[Black "Boons, Joris"]
[Result "0-1"]
[ECO "C33"]
[WhiteElo "1474"]
[BlackElo "1512"]
[Annotator "NA"]
[PlyCount "26"]
[EventDate "2019.07.06"]
[EventType "swiss"]
[EventCountry "NED"]
[SourceTitle "playchess.com"]
[Source "ChessBase"]
[SourceQuality "1"]
[TimeControl "40/5400+30:1800+30"]

1. f4 {[%emt 0:00:00]} e5 {[%emt 0:00:00]} 2. e4 {[%emt 0:01:16]} exf4 {[%emt 0:06:57]} 3. Bc4 {[%emt 0:01:06]} Qh4+ {[%emt 0:00:04]} 4. Kf1 {[%emt 0:00:55]} Nf6 {[%emt 0:02:04]} 5. Nf3 {[%emt 0:01:11]} Qh6 {[%emt 0:03:44]} 6. e5 {[%emt 0:26:25]} d5 {[%emt 0:00:15]} 7. exf6 {[%emt 0:09:50]} dxc4 {[%emt 0:00:28]} 8. Qe2+ {[%emt 0:06:51]} Be6 {[%emt 0:00:48]} 9. fxg7 {[%emt 0:04:08]} Bxg7 {[%emt 0:00:20]} 10. Na3 {[%emt 0:06:56]} Nc6 {[%emt 0:04:13]} 11. Nxc4 {[%emt 0:05:03]} O-O-O {[%emt 0:00:15]} 12. d3 {[%emt 0:05:42]} Bxc4 {[%emt 0:01:34]} 13. dxc4 {[%emt 0:01:17]} Rhe8 0-1